Workbook

Sheet HCP
A2: Générique | B2: Index | C2: Slope | D2: PAR | E2: SSS | F2: HCP
A3: Rouge | B3: 21 | C3: 113 | D3: 72 | E3: 72 | F3: =B3*C3/113+E3-D3 -> 21
A4: Bleu | B4: 21 | C4: 113 | D4: =D3 -> 72 | E4: 72 | F4: 21
A5: Jaune | B5: 30.8 | C5: 113 | D5: =D4 -> 72 | E5: 72 | F5: 30.8
A6: Blanc | B6: 30.8 | C6: 113 | D6: =D5 -> 72 | E6: 72 | F6: 30.8
A7: Dominique | B7: 21 | C7: =C3 -> 113 | D7: =D6 -> 72 | E7: =E3 -> 72 | F7: 21
A8: Bernard | B8: 30.8 | C8: =C5 -> 113 | D8: =D7 -> 72 | E8: =E5 -> 72 | F8: 30.8
A10: Bresson | B10: Index | C10: Slope | D10: PAR | E10: SSS | F10: HCP
A11: Rouge | B11: =B3 -> 21 | C11: 132 | D11: 73 | E11: 71.8 | F11: =B11*C11/113+E11-D11 -> 23.33097345
A12: Bleu | B12: 21 | C12: 140 | D12: =D11 -> 73 | E12: 73.9 | F12: 26.91769912
A13: Jaune | B13: 30.8 | C13: 135 | D13: =D12 -> 73 | E13: 71.7 | F13: 35.49646018
A14: Blanc | B14: 30.8 | C14: 147 | D14: =D13 -> 73 | E14: 74 | F14: 41.06725664
A15: Dominique | B15: 21 | C15: =C11 -> 132 | D15: =D14 -> 73 | E15: =E11 -> 71.8 | F15: 23.33097345
A16: Bernard | B16: 30.8 | C16: =C13 -> 135 | D16: =D15 -> 73 | E16: =E13 -> 71.7 | F16: 35.49646018
A18: Uriage | B18: Index | C18: Slope | D18: PAR | E18: SSS | F18: HCP
A19: Rouge | B19: =B11 -> 21 | C19: 108 | D19: 64 | E19: 62.4 | F19: =B19*C19/113+E19-D19 -> 18.47079646
A20: Bleu | B20: 21 | C20: 104 | D20: =D19 -> 64 | E20: 62.7 | F20: 18.02743363
A21: Jaune | B21: 30.8 | C21: 106 | D21: =D20 -> 64 | E21: 61.1 | F21: 25.9920354
A22: Blanc | B22: 30.8 | C22: 112 | D22: =D21 -> 64 | E22: 61.3 | F22: 27.82743363
A23: Dominique | B23: 21 | C23: =C19 -> 108 | D23: =D22 -> 64 | E23: =E19 -> 62.4 | F23: 18.47079646
A24: Bernard | B24: 30.8 | C24: =C21 -> 106 | D24: =D23 -> 64 | E24: =E21 -> 61.1 | F24: 25.9920354
A26: Corrençon | B26: Index | C26: Slope | D26: PAR | E26: SSS | F26: HCP
A27: Rouge | B27: =B19 -> 21 | C27: 116 | D27: 71 | E27: 66.6 | F27: =B27*C27/113+E27-D27 -> 17.15752212
A28: Bleu | B28: 21 | C28: 116 | D28: =D27 -> 71 | E28: 69.8 | F28: 20.35752212
A29: Jaune | B29: 30.8 | C29: 114 | D29: =D28 -> 71 | E29: 67 | F29: 27.07256637
A30: Blanc | B30: 30.8 | C30: 118 | D30: =D29 -> 71 | E30: 68.9 | F30: 30.06283186
A31: Dominique | B31: 21 | C31: =C27 -> 116 | D31: =D30 -> 71 | E31: =E27 -> 66.6 | F31: 17.15752212
A32: Bernard | B32: 30.8 | C32: =C29 -> 114 | D32: =D31 -> 71 | E32: =E29 -> 67 | F32: 27.07256637
A34: Charmeil | B34: Index | C34: Slope | D34: PAR | E34: SSS | F34: HCP
A35: Rouge | B35: =B27 -> 21 | C35: 132 | D35: 73 | E35: 72.8 | F35: =B35*C35/113+E35-D35 -> 24.33097345
A36: Bleu | B36: 21 | C36: 135 | D36: =D35 -> 73 | E36: 75.2 | F36: 27.28849558
A37: Jaune | B37: 30.8 | C37: 130 | D37: =D36 -> 73 | E37: 71.5 | F37: 33.93362832
A38: Blanc | B38: 30.8 | C38: 134 | D38: =D37 -> 73 | E38: 73.3 | F38: 36.82389381
A39: Dominique | B39: 21 | C39: =C35 -> 132 | D39: =D38 -> 73 | E39: =E35 -> 72.8 | F39: 24.33097345
A40: Bernard | B40: 30.8 | C40: =C37 -> 130 | D40: =D39 -> 73 | E40: =E37 -> 71.5 | F40: 33.93362832
A42: Seyssins | B42: Index | C42: Slope | D42: PAR | E42: SSS | F42: HCP
A43: Rouge | B43: =B35 -> 21 | C43: 101 | D43: 64 | E43: 60.1 | F43: =B43*C43/113+E43-D43 -> 14.8699115
A44: Bleu | B44: 21 | C44: 104 | D44: =D43 -> 64 | E44: 60.9 | F44: 16.22743363
A45: Jaune | B45: 30.8 | C45: 104 | D45: =D44 -> 64 | E45: 61.1 | F45: 25.44690265
A46: Blanc | B46: 30.8 | C46: 106 | D46: =D45 -> 64 | E46: 61.6 | F46: 26.4920354
A47: Dominique | B47: 21 | C47: =C43 -> 101 | D47: =D46 -> 64 | E47: =E43 -> 60.1 | F47: 14.8699115
A48: Bernard | B48: 30.8 | C48: =C45 -> 104 | D48: =D47 -> 64 | E48: =E45 -> 61.1 | F48: 25.44690265
A50: Valence St Didier | B50: Index | C50: Slope | D50: PAR | E50: SSS | F50: HCP
A51: Rouge | B51: =B43 -> 21 | C51: 129 | D51: 71 | E51: 72.3 | F51: =B51*C51/113+E51-D51 -> 25.27345133
A52: Bleu | B52: 21 | C52: 130 | D52: =D51 -> 71 | E52: 72.6 | F52: 25.75929204
A53: Jaune | B53: 30.8 | C53: 130 | D53: =D52 -> 71 | E53: 70.1 | F53: 34.53362832
A54: Blanc | B54: 30.8 | C54: 134 | D54: =D53 -> 71 | E54: 71.6 | F54: 37.12389381
A55: Dominique | B55: 21 | C55: =C51 -> 129 | D55: =D54 -> 71 | E55: =E51 -> 72.3 | F55: 25.27345133
A56: Bernard | B56: 30.8 | C56: =C53 -> 130 | D56: =D55 -> 71 | E56: =E53 -> 70.1 | F56: 34.53362832
A58: Aix les Bains | B58: Index | C58: Slope | D58: PAR | E58: SSS | F58: HCP
A59: Rouge | B59: =B51 -> 21 | C59: 120 | D59: 70 | E59: 70.4 | F59: =B59*C59/113+E59-D59 -> 22.70088496
A60: Bleu | B60: 21 | C60: 121 | D60: =D59 -> 70 | E60: 71.7 | F60: 24.18672566
A61: Jaune | B61: 30.8 | C61: 122 | D61: =D60 -> 70 | E61: 69 | F61: 32.25309735
A62: Blanc | B62: 30.8 | C62: 124 | D62: =D61 -> 70 | E62: 70.1 | F62: 33.89823009
A63: Dominique | B63: 21 | C63: =C59 -> 120 | D63: =D62 -> 70 | E63: =E59 -> 70.4 | F63: 22.70088496
A64: Bernard | B64: 30.8 | C64: =C61 -> 122 | D64: =D63 -> 70 | E64: =E61 -> 69 | F64: 32.25309735
A66: Salvagny | B66: Index | C66: Slope | D66: PAR | E66: SSS | F66: HCP
A67: Rouge | B67: =B59 -> 21 | C67: 117 | D67: 72 | E67: 69 | F67: =B67*C67/113+E67-D67 -> 18.74336283
A68: Bleu | B68: 21 | C68: 125 | D68: =D67 -> 72 | E68: 71.8 | F68: 23.0300885
A69: Jaune | B69: 30.8 | C69: 122 | D69: =D68 -> 72 | E69: 69.4 | F69: 30.65309735
A70: Blanc | B70: 30.8 | C70: 129 | D70: =D69 -> 72 | E70: 71.1 | F70: 34.26106195
A71: Dominique | B71: 21 | C71: =C67 -> 117 | D71: =D70 -> 72 | E71: =E67 -> 69 | F71: 18.74336283
A72: Bernard | B72: 30.8 | C72: =C69 -> 122 | D72: =D71 -> 72 | E72: =E69 -> 69.4 | F72: 30.65309735
A74: Fôret d'Orient | B74: Index | C74: Slope | D74: PAR | E74: SSS | F74: HCP
A75: Rouge | B75: =B67 -> 21 | C75: 121 | D75: 71 | E75: 71 | F75: =B75*C75/113+E75-D75 -> 22.48672566
A76: Bleu | B76: 21 | C76: 122 | D76: =D75 -> 71 | E76: 72.6 | F76: 24.27256637
A77: Jaune | B77: 30.8 | C77: 122 | D77: =D76 -> 71 | E77: 70.5 | F77: 32.75309735
A78: Blanc | B78: 30.8 | C78: 123 | D78: =D77 -> 71 | E78: 72.1 | F78: 34.62566372
A79: Dominique | B79: 21 | C79: =C75 -> 121 | D79: =D78 -> 71 | E79: =E75 -> 71 | F79: 22.48672566
A80: Bernard | B80: 30.8 | C80: =C77 -> 122 | D80: =D79 -> 71 | E80: =E77 -> 70.5 | F80: 32.75309735
A82: La Cordelière | B82: Index | C82: Slope | D82: PAR | E82: SSS | F82: HCP
A83: Rouge | B83: =B75 -> 21 | C83: 122 | D83: 72 | E83: 71 | F83: =B83*C83/113+E83-D83 -> 21.67256637
A84: Bleu | B84: 21 | C84: 124 | D84: =D83 -> 72 | E84: 73.2 | F84: 24.24424779
A85: Jaune | B85: 30.8 | C85: 127 | D85: =D84 -> 72 | E85: 70 | F85: 32.6159292
A86: Blanc | B86: 30.8 | C86: 133 | D86: =D85 -> 72 | E86: 71.7 | F86: 35.95132743
A87: Dominique | B87: 21 | C87: =C83 -> 122 | D87: =D86 -> 72 | E87: =E83 -> 71 | F87: 21.67256637
A88: Bernard | B88: 30.8 | C88: =C85 -> 127 | D88: =D87 -> 72 | E88: =E85 -> 70 | F88: 32.6159292
A90: MansGolfier | B90: Index | C90: Slope | D90: PAR | E90: SSS | F90: HCP
A91: Rouge | B91: =B75 -> 21 | C91: 118 | D91: 71 | E91: 70.4 | F91: =B91*C91/113+E91-D91 -> 21.32920354
A92: Bleu | B92: 21 | C92: 120 | D92: =D91 -> 71 | E92: 71.7 | F92: 23.00088496
A93: Jaune | B93: 30.8 | C93: 124 | D93: =D92 -> 71 | E93: 69.5 | F93: 32.29823009
A94: Blanc | B94: 30.8 | C94: 131 | D94: =D93 -> 71 | E94: 71.7 | F94: 36.40619469
A95: Dominique | B95: 21 | C95: =C91 -> 118 | D95: =D94 -> 71 | E95: =E91 -> 70.4 | F95: 21.32920354
A96: Bernard | B96: 30.8 | C96: =C93 -> 124 | D96: =D95 -> 71 | E96: =E93 -> 69.5 | F96: 32.29823009
A98: Giez | B98: Index | C98: Slope | D98: PAR | E98: SSS | F98: HCP
A99: Rouge | B99: =B91 -> 21 | C99: 126 | D99: 72 | E99: 69.4 | F99: =B99*C99/113+E99-D99 -> 20.8159292
A100: Bleu | B100: 21 | C100: 138 | D100: =D99 -> 72 | E100: 72.1 | F100: 25.7460177
A101: Jaune | B101: 30.8 | C101: 131 | D101: =D100 -> 72 | E101: 69.3 | F101: 33.00619469
A102: Blanc | B102: 30.8 | C102: 135 | D102: =D101 -> 72 | E102: 71.2 | F102: 35.99646018
A103: Dominique | B103: 21 | C103: =C99 -> 126 | D103: =D102 -> 72 | E103: =E99 -> 69.4 | F103: 20.8159292
A104: Bernard | B104: 30.8 | C104: =C101 -> 131 | D104: =D103 -> 72 | E104: =E101 -> 69.3 | F104: 33.00619469
A106: Lac Annecy | B106: Index | C106: Slope | D106: PAR | E106: SSS | F106: HCP
A107: Rouge | B107: =B99 -> 21 | C107: 113 | D107: 69 | E107: 66.5 | F107: =B107*C107/113+E107-D107 -> 18.5
A108: Bleu | B108: 21 | C108: 117 | D108: =D107 -> 69 | E108: 67.8 | F108: 20.54336283
A109: Jaune | B109: 30.8 | C109: 117 | D109: =D108 -> 69 | E109: 65.7 | F109: 28.59026549
A110: Blanc | B110: 30.8 | C110: 119 | D110: =D109 -> 69 | E110: 66.9 | F110: 30.33539823
A111: Dominique | B111: 21 | C111: =C107 -> 113 | D111: =D110 -> 69 | E111: =E107 -> 66.5 | F111: 18.5
A112: Bernard | B112: 30.8 | C112: =C109 -> 117 | D112: =D111 -> 69 | E112: =E109 -> 65.7 | F112: 28.59026549
A114: Chanalets | B114: Index | C114: Slope | D114: PAR | E114: SSS | F114: HCP
A115: Rouge | B115: =B107 -> 21 | C115: 118 | D115: 71 | E115: 70.8 | F115: =B115*C115/113+E115-D115 -> 21.72920354
A116: Bleu | B116: 21 | C116: 122 | D116: =D115 -> 71 | E116: 72.7 | F116: 24.37256637
A117: Jaune | B117: 30.8 | C117: 121 | D117: =D116 -> 71 | E117: 69.3 | F117: 31.28053097
A118: Blanc | B118: 30.8 | C118: 124 | D118: =D117 -> 71 | E118: 71 | F118: 33.79823009
A119: Dominique | B119: 21 | C119: =C115 -> 118 | D119: 72 | E119: =E115 -> 70.8 | F119: 20.72920354
A120: Bernard | B120: 30.8 | C120: =C117 -> 121 | D120: 72 | E120: =E117 -> 69.3 | F120: 30.28053097
A122: Esery | B122: Index | C122: Slope | D122: PAR | E122: SSS | F122: HCP
A123: Rouge | B123: =B115 -> 21 | C123: 131 | D123: 72 | E123: 71 | F123: =B123*C123/113+E123-D123 -> 23.34513274
A124: Bleu | B124: 21 | C124: 135 | D124: =D123 -> 72 | E124: 73.6 | F124: 26.68849558
A125: Jaune | B125: 30.8 | C125: 139 | D125: =D124 -> 72 | E125: 70.6 | F125: 36.48672566
A126: Blanc | B126: 30.8 | C126: 146 | D126: =D125 -> 72 | E126: 73.7 | F126: 41.49469027
A127: Dominique | B127: =B119 -> 21 | C127: =C123 -> 131 | D127: =D126 -> 72 | E127: =E123 -> 71 | F127: 23.34513274
A128: Bernard | B128: =B120 -> 30.8 | C128: =C125 -> 139 | D128: =D127 -> 72 | E128: =E125 -> 70.6 | F128: 36.48672566
A130: Montaplan | B130: Index | C130: Slope | D130: PAR | E130: SSS | F130: HCP
A131: Rouge | B131: =B123 -> 21 | D131: 71 | F131: =B131*C131/113+E131-D131 -> -71
A132: Bleu | B132: 21 | D132: =D131 -> 71 | F132: -71
A133: Jaune | B133: 30.8 | D133: =D132 -> 71 | F133: -71
A134: Blanc | B134: 30.8 | D134: =D133 -> 71 | F134: -71
A135: Dominique | B135: =B127 -> 21 | C135: =C131 -> 0 | D135: =D134 -> 71 | E135: =E131 -> 0 | F135: -71
A136: Bernard | B136: =B128 -> 30.8 | C136: =C133 -> 0 | D136: =D135 -> 71 | E136: =E133 -> 0 | F136: -71
A138: Biot | B138: Index | C138: Slope | D138: PAR | E138: SSS | F138: HCP
A139: Rouge | B139: =B131 -> 21 | C139: 115 | D139: 69 | E139: 66.7 | F139: =B139*C139/113+E139-D139 -> 19.07168142
A140: Bleu | B140: 21 | C140: 117 | D140: =D139 -> 69 | E140: 67.1 | F140: 19.84336283
A141: Jaune | B141: 30.8 | C141: 112 | D141: =D140 -> 69 | E141: 65.2 | F141: 26.72743363
A142: Blanc | B142: 30.8 | C142: 114 | D142: =D141 -> 69 | E142: 65.6 | F142: 27.67256637
A143: Dominique | B143: =B135 -> 21 | C143: =C139 -> 115 | D143: =D142 -> 69 | E143: =E139 -> 66.7 | F143: 19.07168142
A144: Bernard | B144: =B136 -> 30.8 | C144: =C141 -> 112 | D144: =D142 -> 69 | E144: =E141 -> 65.2 | F144: 26.72743363
A146: Valescure | B146: Index | C146: Slope | D146: PAR | E146: SSS | F146: HCP
A147: Rouge | B147: =B139 -> 21 | C147: 129 | D147: 68 | E147: 69.1 | F147: =B147*C147/113+E147-D147 -> 25.07345133
A148: Bleu | B148: 21 | C148: 136 | D148: =D147 -> 68 | E148: 70.3 | F148: 27.57433628
A149: Jaune | B149: 30.8 | C149: 131 | D149: =D148 -> 68 | E149: 66.7 | F149: 34.40619469
A150: Blanc | B150: 30.8 | C150: 135 | D150: =D149 -> 68 | E150: 68.1 | F150: 36.89646018
A151: Dominique | B151: =B143 -> 21 | C151: =C147 -> 129 | D151: =D150 -> 68 | E151: =E147 -> 69.1 | F151: 25.07345133
A152: Bernard | B152: =B144 -> 30.8 | C152: =C149 -> 131 | D152: =D150 -> 68 | E152: =E149 -> 66.7 | F152: 34.40619469
A154: Mionnay | B154: Index | C154: Slope | D154: PAR | E154: SSS | F154: HCP
A155: Rouge | B155: =B147 -> 21 | C155: 121 | D155: 71 | E155: 70.6 | F155: =B155*C155/113+E155-D155 -> 22.08672566
A156: Bleu | B156: 21 | C156: 125 | D156: =D155 -> 71 | E156: 71.6 | F156: 23.8300885
A157: Jaune | B157: 30.8 | C157: 126 | D157: =D156 -> 71 | E157: 69.6 | F157: 32.94336283
A158: Blanc | B158: 30.8 | C158: 131 | D158: =D157 -> 71 | E158: 71.1 | F158: 35.80619469
A159: Dominique | B159: =B151 -> 21 | C159: =C155 -> 121 | D159: =D158 -> 71 | E159: =E155 -> 70.6 | F159: 22.08672566
A160: Bernard | B160: =B152 -> 30.8 | C160: =C157 -> 126 | D160: =D158 -> 71 | E160: =E157 -> 69.6 | F160: 32.94336283
A162: Chassieu | B162: Index | C162: Slope | D162: PAR | E162: SSS | F162: HCP
A163: Rouge | B163: =B155 -> 21 | C163: 118 | D163: 70 | E163: 67.6 | F163: =B163*C163/113+E163-D163 -> 19.52920354
A164: Bleu | B164: 21 | C164: 128 | D164: =D163 -> 70 | E164: 71.7 | F164: 25.48761062
A165: Jaune | B165: 30.8 | C165: 124 | D165: =D164 -> 70 | E165: 67.3 | F165: 31.09823009
A166: Blanc | B166: 30.8 | C166: 125 | D166: =D165 -> 70 | E166: 71.2 | F166: 35.27079646
A167: Dominique | B167: =B159 -> 21 | C167: =C163 -> 118 | D167: =D166 -> 70 | E167: =E163 -> 67.6 | F167: 19.52920354
A168: Bernard | B168: =B160 -> 30.8 | C168: =C165 -> 124 | D168: =D166 -> 70 | E168: =E165 -> 67.3 | F168: 31.09823009
A170: Nouveau | B170: Index | C170: Slope | D170: PAR | E170: SSS | F170: HCP
A171: Rouge | B171: =B163 -> 21 | F171: =B171*C171/113+E171-D171 -> 0
A172: Bleu | B172: 21 | D172: =D171 -> 0 | F172: 0
A173: Jaune | B173: 30.8 | D173: =D172 -> 0 | F173: 0
A174: Blanc | B174: 30.8 | D174: =D173 -> 0 | F174: 0
A175: Dominique | B175: =B167 -> 21 | C175: =C171 -> 0 | D175: =D174 -> 0 | E175: =E171 -> 0 | F175: 0
A176: Bernard | B176: =B168 -> 30.8 | C176: =C173 -> 0 | D176: =D174 -> 0 | E176: =E173 -> 0 | F176: 0
A178: Nouveau | B178: Index | C178: Slope | D178: PAR | E178: SSS | F178: HCP
A179: Rouge | B179: =B171 -> 21 | F179: =B179*C179/113+E179-D179 -> 0
A180: Bleu | B180: 21 | D180: =D179 -> 0 | F180: 0
A181: Jaune | B181: 30.8 | D181: =D180 -> 0 | F181: 0
A182: Blanc | B182: 30.8 | D182: =D181 -> 0 | F182: 0
A183: Dominique | B183: =B175 -> 21 | C183: =C179 -> 0 | D183: =D182 -> 0 | E183: =E179 -> 0 | F183: 0
A184: Bernard | B184: =B176 -> 30.8 | C184: =C181 -> 0 | D184: =D182 -> 0 | E184: =E181 -> 0 | F184: 0
A186: Nouveau | B186: Index | C186: Slope | D186: PAR | E186: SSS | F186: HCP
A187: Rouge | B187: =B179 -> 21 | F187: =B187*C187/113+E187-D187 -> 0
A188: Bleu | B188: 21 | D188: =D187 -> 0 | F188: 0
A189: Jaune | B189: 30.8 | D189: =D188 -> 0 | F189: 0
A190: Blanc | B190: 30.8 | D190: =D189 -> 0 | F190: 0
A191: Dominique | B191: =B183 -> 21 | C191: =C187 -> 0 | D191: =D190 -> 0 | E191: =E187 -> 0 | F191: 0
A192: Bernard | B192: =B184 -> 30.8 | C192: =C189 -> 0 | D192: =D190 -> 0 | E192: =E189 -> 0 | F192: 0
